bitfinex/quotes_ETHUSD_20251017
["timestamp","ask_amount","ask_price","bid_price","bid_amount"]
[1760664568996,0.001,3938.4,3938.1,2.53929559]
[1760664569292,0.1264,3938.1,3938.0,2.97020498]
[1760664569494,0.1264,3938.1,3938.0,3.93687933]
[1760664569698,0.1264,3938.1,3938.0,3.50597933]
[1760664570400,0.001,3938.4,3938.3,2.53916664]
[1760664570565,0.001,3938.4,3938.3,3.1981583]
[1760664570765,0.001,3938.4,3938.3,4.27226551]
[1760664571596,0.001,3938.4,3937.9,3.86]
[1760664571762,0.1019,3938.3,3937.9,3.86]
[1760664572812,2.578,3938.2,3937.9,3.86]
[1760664573113,0.1019,3938.1,3937.9,3.86]
[1760664574769,0.1019,3938.0,3937.9,3.86]
[1760664575169,0.1019,3938.0,3937.6,2.53961161]
[1760664575505,2.578,3938.2,3937.6,2.53961161]
[1760664577721,2.578,3938.2,3937.7,2.5395479]
[1760664579310,2.578,3938.2,3937.8,3.86]
[1760664579512,2.578,3938.2,3937.9,3.86]
[1760664580015,2.578,3938.2,3937.7,2.5395479]
[1760664580016,2.578,3938.2,3938.0,3.86]
[1760664580400,2.6799,3938.2,3938.0,3.86]
[1760664584011,2.6799,3938.2,3938.1,3.86]
[1760664586278,2.578,3938.2,3938.1,3.86]
[1760664593589,5.47703112,3938.2,3938.1,3.86]
[1760664593790,2.9378,3938.2,3938.1,3.86]
[1760664594010,5.47703112,3938.2,3938.1,3.86]
[1760664594438,2.9378,3938.2,3938.1,3.86]
[1760664594616,2.8359,3938.2,3938.1,3.86]
[1760664594816,2.578,3938.2,3938.1,3.86]
[1760664596422,0.001,3938.4,3938.1,3.86]
[1760664596742,2.578,3938.3,3938.1,3.86]
[1760664597042,0.001,3938.4,3938.1,3.86]
[1760664597344,0.001,3938.4,3938.2,0.4671]
[1760664597670,2.578,3938.3,3938.2,0.4671]
[1760664598138,2.578,3938.3,3938.2,0.49249231]
[1760664598314,0.001,3938.4,3938.2,0.49249231]
[1760664598513,2.578,3938.3,3938.2,0.02539231]
[1760664598846,0.001,3938.4,3938.3,2.53916664]
[1760664598847,2.7054,3938.4,3938.3,2.53916664]
[1760664599254,0.1274,3938.4,3938.3,3.00626664]
[1760664599753,0.001,3938.8,3938.7,6.27050877]
[1760664599934,2.7054,3938.8,3938.7,6.89755965]
[1760664600139,2.7054,3938.8,3938.7,7.32615965]
[1760664600817,0.1274,3938.8,3938.7,7.32615965]
[1760664601023,0.1274,3938.8,3938.7,6.89755965]
[1760664601230,0.1274,3938.8,3938.7,3.7316]
[1760664603060,0.1274,3938.8,3938.7,6.69910877]
[1760664605212,0.1274,3938.8,3938.7,3.7316]
[1760664605536,0.1274,3938.8,3938.7,6.27050877]
[1760664605758,0.1274,3938.8,3938.7,3.7316]
[1760664606653,0.2267,3938.8,3938.7,3.7316]
[1760664607438,0.77378308,3938.8,3938.7,3.7316]
[1760664608348,3.31262739,3938.8,3938.7,3.7316]
[1760664608746,3.31262739,3938.8,3938.1,3.7316]
[1760664608747,2.53902511,3938.6,3938.1,3.7316]
[1760664608962,2.6763,3938.5,3938.1,3.7316]
[1760664609475,0.0993,3938.5,3938.1,3.7316]
[1760664609681,2.577,3938.4,3938.1,3.7316]
[1760664610288,2.577,3938.3,3938.2,0.4286]
[1760664610588,2.577,3938.3,3938.2,2.96783112]
[1760664610786,2.577,3938.3,3938.2,3.89191663]
[1760664611220,0.001,3938.8,3938.2,1.35268551]
[1760664611362,2.577,3938.7,3938.0,3.7316]
[1760664611557,0.0998,3938.6,3938.0,3.7316]
[1760664611760,2.53916602,3938.4,3938.0,3.7316]
[1760664611990,2.6768,3938.3,3938.0,3.7316]
[1760664612590,0.0998,3938.2,3938.0,3.7316]
[1760664612962,2.577,3938.3,3938.0,3.7316]
[1760664613392,2.63904219,3938.2,3938.0,3.7316]
[1760664613693,0.0998,3938.2,3938.0,3.7316]
[1760664615677,5.11618266,3938.3,3938.0,3.7316]
[1760664615882,5.21598266,3938.3,3938.0,3.7316]
[1760664616397,2.6768,3938.3,3938.0,3.7316]
[1760664616696,2.6768,3938.3,3938.1,3.7316]
[1760664617800,5.21596993,3938.3,3938.1,3.7316]
[1760664618295,2.53923112,3938.2,3938.1,3.7316]
[1760664618502,5.21597974,3938.3,3938.1,3.7316]
[1760664618990,2.53923112,3938.2,3938.1,3.7316]
[1760664619197,5.21597104,3938.3,3938.1,3.7316]
[1760664619970,2.53923112,3938.2,3938.1,3.7316]
[1760664620599,5.21597657,3938.3,3938.1,3.7316]
[1760664620899,2.577,3938.3,3938.1,3.7316]
[1760664621092,0.7638476,3938.2,3938.1,3.7316]
[1760664623103,3.3418476,3938.2,3938.1,4.1808]
[1760664623875,3.3418476,3938.2,3938.1,3.7316]
[1760664624406,3.3418476,3938.2,3938.1,4.1808]
[1760664625877,3.3418476,3938.2,3938.1,3.7316]
[1760664627787,0.099,3938.6,3938.1,3.7316]
[1760664627788,0.001,3938.8,3938.1,4.40402139]
[1760664627994,2.102,3938.7,3938.2,0.4492]
[1760664628190,2.102,3938.7,3938.3,0.4492]
[1760664628391,2.102,3938.7,3938.4,3.7316]
[1760664628598,2.102,3938.7,3938.4,4.1808]
[1760664628797,0.001,3938.8,3938.5,0.4492]
[1760664629006,2.577,3938.7,3938.5,0.4492]
[1760664629204,0.001,3938.8,3938.6,0.02538973]
[1760664629405,2.577,3938.7,3938.6,0.02538973]
[1760664629579,2.577,3938.7,3938.6,0.4492]
[1760664629779,2.577,3938.7,3938.6,1.25940693]
[1760664632196,0.001,3938.8,3938.6,1.25940693]
[1760664632396,0.001,3938.8,3938.7,4.1808]
[1760664632597,0.001,3938.8,3938.7,6.71970877]
[1760664632815,0.1274,3938.8,3938.7,6.71970877]
[1760664633011,0.1274,3938.8,3938.7,7.69246148]
[1760664638023,0.1274,3938.8,3938.7,8.32606148]
[1760664638210,0.1274,3938.8,3938.7,4.59446148]
[1760664638211,0.001,3938.8,3938.7,4.59446148]
[1760664638385,0.001,3938.8,3938.7,4.61985056]
[1760664638590,0.001,3938.8,3938.7,4.59446148]
[1760664640721,0.001,3938.8,3938.7,4.61985056]
[1760664642295,0.001,3938.8,3938.7,4.72086148]
[1760664643231,0.001,3938.8,3938.7,4.74625056]
[1760664643437,0.001,3938.8,3938.7,4.72086148]
[1760664644289,0.001,3938.8,3938.7,4.74625056]
[1760664644490,0.001,3938.8,3938.7,6.47425056]
[1760664644690,0.001,3938.8,3938.7,6.44886148]
[1760664646324,0.001,3939.0,3938.9,3.17237986]
[1760664646502,0.001,3939.0,3938.9,13.0817928]
[1760664646709,0.001,3939.0,3938.9,13.63200501]
[1760664647328,0.001,3939.5,3938.9,13.63200501]
[1760664647329,0.001,3939.5,3939.2,3.17214751]
[1760664647530,0.001,3939.5,3939.4,10.70358278]
[1760664647735,0.001,3939.5,3939.4,11.64018971]
[1760664648034,0.001,3939.5,3939.4,12.08938971]
[1760664648239,0.001,3939.5,3939.4,12.19114744]
[1760664654154,0.001,3939.5,3939.4,6.62942229]
[1760664654358,0.001,3939.5,3939.4,5.30482229]
[1760664654651,0.001,3939.5,3939.4,4.10866456]
[1760664656826,0.001,3939.5,3939.1,2.575]
[1760664656827,0.1045,3939.5,3939.1,2.575]
[1760664657026,0.1035,3939.4,3938.9,0.1264]
[1760664657228,0.1263,3939.0,3938.7,2.53889565]
[1760664657451,0.1038,3938.9,3938.8,0.6336]
[1760664657645,0.1038,3938.9,3938.8,3.17244431]
[1760664658050,0.1038,3938.9,3938.8,0.002]
[1760664659057,0.1038,3938.9,3938.8,3.7336]
[1760664660261,0.1263,3939.0,3938.9,2.53877986]
[1760664660451,0.2301,3939.0,3938.9,2.53877986]
[1760664660651,0.1264,3939.0,3938.9,2.56416765]
[1760664660857,0.2304,3939.0,3938.9,4.62344911]
[1760664661064,0.2304,3939.0,3938.8,3.7336]
[1760664661240,0.2301,3938.9,3938.8,4.3672]
[1760664663950,0.1264,3939.0,3938.9,3.5015]
[1760664664149,0.1264,3939.0,3938.9,9.9315]
[1760664665781,0.1264,3939.0,3938.9,12.47027986]
[1760664666184,0.1264,3939.0,3938.9,9.9315]
[1760664667553,0.1264,3939.0,3938.9,12.47027986]
[1760664668286,1.728,3939.4,3938.9,3.5015]
[1760664668483,1.9857,3939.4,3938.9,3.5015]
[1760664668658,2.5387048,3939.1,3938.9,3.5015]
[1760664669385,2.53871541,3939.0,3938.9,3.5015]
[1760664669565,2.53866458,3939.1,3938.9,3.5015]
[1760664670693,3.30233135,3939.1,3938.9,3.5015]
[1760664672492,0.76366677,3939.1,3938.9,3.5015]
[1760664672697,2.575,3939.0,3938.8,0.002]
[1760664673585,0.001,3939.5,3938.9,3.86]
[1760664673892,0.001,3939.5,3938.9,6.39876696]
[1760664673893,2.575,3939.4,3938.9,6.39876696]
[1760664674069,0.76456181,3939.5,3939.0,6.39870015]
[1760664674275,2.575,3939.4,3939.1,3.86]
[1760664674797,2.576,3939.4,3939.2,3.86]
[1760664675180,2.576,3939.4,3939.1,3.86]
[1760664675376,2.576,3939.4,3939.2,3.86]
[1760664676372,0.001,3939.4,3939.3,7.05750729]
[1760664676586,0.001,3939.4,3939.3,8.81793775]
[1760664677999,0.001,3939.4,3939.3,15.19586333]
[1760664678196,0.001,3939.4,3939.3,15.32226333]
[1760664678796,0.001,3939.4,3939.3,10.67233775]
[1760664679688,0.001,3939.4,3939.3,15.32226333]
[1760664680715,1e-08,3939.9,3939.8,3.1717999]
[1760664680871,1e-08,3939.9,3939.8,16.01010747]
[1760664681072,1e-08,3939.9,3939.8,15.98472548]
[1760664681310,1e-08,3939.9,3939.8,16.45482548]
[1760664681811,0.001,3940.0,3939.9,4.89973548]
[1760664681969,0.067,3941.9,3940.5,4.89934901]
[1760664682169,0.067,3941.9,3940.5,12.14965208]
[1760664682365,0.067,3941.9,3940.5,12.59437459]
[1760664682587,0.067,3941.9,3940.5,14.12903983]
[1760664682788,0.3891,3942.0,3940.5,14.12903983]
[1760664683597,0.1001,3942.0,3940.5,14.12903983]
[1760664685089,0.6728,3942.1,3940.5,14.12903983]
[1760664685381,0.1001,3941.8,3940.5,14.12903983]
[1760664687282,0.1001,3941.8,3940.5,24.41903983]
[1760664688708,0.1001,3941.8,3940.5,29.06896541]
[1760664689210,0.1001,3941.8,3940.5,22.63896541]
[1760664689714,0.1001,3942.0,3940.5,22.63896541]
[1760664690277,0.1001,3941.8,3940.5,22.63896541]
[1760664690911,0.1001,3941.8,3940.5,22.76536541]
[1760664692412,0.1264,3941.9,3940.5,22.76536541]
[1760664692731,0.001,3941.0,3940.5,18.11543983]
[1760664695015,0.001,3941.0,3940.5,9.78681425]
[1760664695336,0.2106,3940.7,3940.5,14.94393983]
[1760664695479,0.2106,3940.7,3940.5,14.31033983]
[1760664695881,0.2106,3940.7,3940.5,14.94393983]
[1760664696218,0.2106,3940.7,3940.5,14.31033983]
[1760664696383,0.2106,3940.7,3940.5,14.94393983]
[1760664696584,0.2106,3940.7,3940.5,8.12574901]
[1760664696585,0.1022,3940.6,3940.5,8.12574901]
[1760664696915,0.1022,3940.6,3940.5,3.86]
[1760664697121,0.1022,3940.6,3940.5,6.39774901]
[1760664697300,0.1022,3940.6,3940.3,3.86]
[1760664697502,0.001,3940.6,3940.2,4.26592809]
[1760664697686,0.1012,3940.5,3940.3,0.6336]
[1760664697887,0.001,3940.6,3940.3,0.6336]
[1760664697888,0.1012,3940.4,3940.3,7.03147782]
[1760664698087,0.1012,3940.4,3940.3,3.86]
[1760664698616,0.1012,3940.4,3939.5,3.86]
[1760664698821,0.1012,3940.3,3939.2,4.64992558]
[1760664699232,0.1012,3940.3,3938.8,2.575]
[1760664699233,0.1012,3940.3,3939.8,2.53814433]
[1760664699450,0.2169,3940.2,3939.9,0.02538135]
[1760664699814,0.2169,3940.1,3939.9,2.56349921]
[1760664700020,2.574,3940.6,3940.0,0.02538071]
[1760664700205,2.574,3940.6,3939.6,0.6336]
[1760664700405,0.1191,3939.7,3939.6,0.6336]
[1760664700608,0.2181,3939.7,3939.6,3.17190159]
[1760664700850,0.2181,3939.7,3939.5,4.64992558]
[1760664700851,0.2181,3939.7,3939.5,0.6336]
[1760664701013,0.099,3939.6,3939.5,3.17194648]
[1760664703223,0.1191,3939.7,3939.6,3.17192876]
[1760664703418,0.2181,3939.7,3939.6,3.17192876]
[1760664703942,0.1191,3939.7,3939.3,0.002]
[1760664704149,0.2181,3939.7,3939.3,0.002]
[1760664704345,0.099,3939.6,3939.3,0.02738522]
[1760664704552,0.099,3939.6,3939.4,3.86]
[1760664704709,0.099,3939.5,3939.4,3.86]
[1760664705909,0.1191,3939.7,3939.4,3.86]
[1760664706445,0.099,3939.6,3939.4,3.86]
[1760664706654,0.1191,3939.7,3939.4,3.86]
[1760664706858,0.099,3939.5,3939.4,3.86]
[1760664708155,0.2181,3939.7,3939.4,3.86]
[1760664708323,0.51728009,3939.7,3939.4,3.86]
[1760664708515,2.672,3939.6,3939.5,3.86]
[1760664708720,2.672,3939.6,3939.4,3.86]
[1760664708946,0.099,3939.5,3939.4,3.86]
[1760664709851,0.099,3939.5,3939.4,3.862]
[1760664710973,2.65737352,3939.7,3939.4,3.862]
[1760664710974,0.1191,3939.7,3939.4,3.862]
[1760664711266,2.573,3939.6,3939.4,3.862]
[1760664713926,0.099,3939.5,3939.4,0.002]
[1760664714197,7.28731877,3939.5,3939.4,0.002]
[1760664714348,9.01531877,3939.5,3939.4,0.002]
[1760664714670,13.65570077,3939.5,3939.4,0.002]
[1760664714846,11.18566093,3939.5,3939.4,0.002]
[1760664715043,6.53573535,3939.5,3939.4,0.002]
[1760664715247,9.10873535,3939.5,3939.4,0.002]
[1760664715473,6.53573535,3939.5,3939.4,0.002]
[1760664715666,6.93839319,3939.5,3939.4,0.002]
[1760664716242,4.4,3939.5,3939.4,0.002]
[1760664716459,6.93839319,3939.5,3939.4,0.002]
[1760664716774,4.4,3939.5,3939.4,0.002]
[1760664717146,1.827,3939.5,3939.4,0.002]
[1760664717346,4.4,3939.5,3939.4,0.002]
[1760664717547,5.10573684,3939.5,3939.4,0.002]
[1760664718077,7.64413003,3939.5,3939.4,0.002]
[1760664720251,2.97223255,3939.5,3939.4,0.002]
[1760664720492,2.574,3939.5,3939.4,0.002]
[1760664721259,2.573,3939.5,3939.4,0.002]
[1760664721676,1.8471,3939.7,3939.4,0.002]
[1760664721677,4.38539419,3939.7,3939.4,0.002]
[1760664721860,5.54991855,3939.6,3939.4,0.002]
[1760664722064,2.63739319,3939.5,3939.4,0.002]
[1760664723449,3.03562024,3939.5,3939.4,0.002]
[1760664723876,0.39822705,3939.5,3939.4,0.002]
[1760664724081,2.97122705,3939.5,3939.4,0.002]
[1760664725672,6.11634251,3939.5,3939.4,0.002]
[1760664725884,6.21534251,3939.5,3939.4,0.002]
[1760664726067,6.21534251,3939.5,3939.4,3.862]
[1760664726579,3.64234251,3939.5,3939.4,3.862]
[1760664726780,6.21534251,3939.5,3939.4,3.862]
[1760664727083,5.81711546,3939.5,3939.4,3.862]
[1760664728702,7.54511546,3939.5,3939.4,3.862]
[1760664729966,7.94334327,3939.5,3939.4,3.862]
[1760664730368,15.87020227,3939.5,3939.4,0.002]
[1760664730862,27.00712248,3939.5,3939.4,0.002]
[1760664731212,10.81969448,3939.5,3939.4,0.002]
[1760664731403,16.40111789,3939.5,3939.4,0.002]
[1760664731710,16.06329589,3939.5,3939.4,0.002]
[1760664731874,14.19869989,3939.5,3939.4,0.002]
[1760664732212,16.77169989,3939.5,3939.4,0.002]
[1760664732765,33.35375189,3939.5,3939.4,0.002]
[1760664733607,31.53688989,3939.5,3939.4,0.002]
[1760664733899,33.26753089,3939.5,3939.4,0.002]
[1760664734062,30.83165489,3939.5,3939.4,0.002]
[1760664734258,21.08897663,3939.4,3939.3,1e-08]
[1760664734458,24.22635555,3939.4,3939.3,1e-08]
[1760664734716,24.32535555,3939.4,3939.3,1e-08]
[1760664734894,37.86366647,3939.4,3939.3,1e-08]
[1760664737798,7.86366647,3939.4,3939.3,1e-08]
[1760664738002,27.72570377,3938.7,3938.0,3.862]
[1760664738190,24.54067718,3938.7,3938.0,0.002]
[1760664738700,18.15318451,3938.7,3938.0,0.002]
[1760664738906,15.92631751,3938.7,3938.1,0.6895]
[1760664739705,15.69591951,3938.7,3938.1,0.6895]
[1760664739902,17.44326352,3938.7,3938.1,0.6895]
[1760664740206,8.98662011,3938.7,3938.1,0.2233]
[1760664740424,8.98662011,3938.7,3938.4,0.4682]
[1760664741194,8.98662011,3938.7,3938.4,0.002]
[1760664741501,4.70035633,3938.7,3938.6,0.4374]
[1760664742003,2.12635633,3938.7,3938.6,0.4374]
[1760664742173,2.97235633,3938.7,3938.6,0.4374]
[1760664743088,7.2392651,3938.7,3938.6,0.002]
[1760664743774,7.2392651,3938.7,3938.6,0.4374]
[1760664743979,7.2392651,3938.7,3938.6,0.002]
[1760664744228,8.21707348,3938.7,3938.6,0.002]
[1760664744515,19.75564448,3938.7,3938.6,0.002]
[1760664744688,18.15195448,3938.7,3938.6,0.002]
[1760664744892,18.25105448,3938.7,3938.6,0.002]
[1760664745116,18.35290912,3938.7,3938.6,0.002]
[1760664745483,28.57436712,3938.7,3938.6,0.002]
[1760664746501,29.13203112,3938.7,3938.6,0.002]
[1760664747286,25.98368912,3938.7,3938.6,0.002]
[1760664747518,27.46999112,3938.7,3938.6,0.002]
[1760664748395,27.37089112,3938.7,3938.6,0.002]
[1760664748718,24.56293412,3938.7,3938.6,0.002]
[1760664749489,26.10284112,3938.7,3938.6,0.002]
[1760664749918,19.48659712,3938.7,3938.6,0.002]
[1760664750228,17.29449412,3938.7,3938.6,0.002]
[1760664750602,22.01896012,3938.7,3938.6,0.002]
[1760664750907,11.75817212,3938.7,3938.6,0.002]
[1760664751220,11.03131912,3938.7,3938.6,0.002]
[1760664751623,13.53534012,3938.7,3938.6,0.002]
[1760664752792,20.88876412,3938.7,3938.6,0.002]
[1760664753804,21.15580012,3938.7,3938.6,0.002]
[1760664754724,23.77907912,3938.7,3938.6,0.002]
[1760664755024,22.89107912,3938.7,3938.6,0.002]
[1760664755790,22.88757812,3938.7,3938.6,0.002]
[1760664756197,22.98667812,3938.7,3938.6,0.002]
[1760664756839,34.58861112,3938.7,3938.6,0.002]
[1760664757142,33.40354212,3938.7,3938.6,0.002]
[1760664757512,5.03067325,3938.6,3938.5,1e-08]
[1760664757808,34.72112851,3938.6,3938.5,1e-08]
[1760664758011,35.08195843,3938.6,3938.5,1e-08]
[1760664758436,2.53936008,3938.0,3937.8,0.002]
[1760664758594,33.0801104,3937.8,3936.6,0.4374]
[1760664758797,4.90505989,3937.7,3937.6,1e-08]
[1760664759001,37.93808981,3937.7,3937.6,1e-08]
[1760664759406,38.03998778,3937.7,3937.6,1e-08]
[1760664759607,34.3218469,3937.3,3936.6,0.002]
[1760664759818,7.25667682,3937.3,3936.6,0.002]
[1760664760007,37.35587682,3937.3,3936.6,0.002]
[1760664760643,37.98947682,3937.3,3936.6,0.002]
[1760664760830,34.90567914,3937.1,3936.6,0.002]
[1760664761214,34.45601414,3937.1,3936.6,0.002]
[1760664761417,22.80982814,3937.1,3936.6,0.002]
[1760664761914,8.07309656,3937.1,3936.6,0.002]
[1760664762237,13.14725282,3937.1,3936.7,0.4354]
[1760664762420,13.14725282,3937.1,3936.6,0.002]
[1760664762622,14.24502132,3937.1,3936.6,0.002]
[1760664763017,25.2118294,3937.1,3936.6,0.002]
[1760664763240,17.3252754,3937.1,3936.6,0.002]
[1760664763841,17.3252754,3937.1,3936.8,0.002]
[1760664764037,26.1300974,3937.1,3936.8,0.002]
[1760664764236,24.8475974,3937.1,3936.8,0.002]
[1760664764538,20.7213824,3937.1,3936.8,0.002]
[1760664764938,17.3502334,3937.1,3936.8,0.002]
[1760664765257,6.87000258,3937.1,3937.0,0.43540001]
[1760664765440,8.94410232,3937.1,3937.0,0.43540001]
[1760664765615,8.94410232,3937.1,3937.0,1e-08]
[1760664765815,8.94410232,3937.1,3937.0,0.43540001]
[1760664766139,15.57057032,3937.1,3937.0,0.43540001]
[1760664766930,1.728,3937.1,3937.0,0.43540001]
[1760664767132,4.54222114,3937.7,3937.0,0.43540001]
[1760664767330,2.0,3937.5,3937.0,0.43540001]
[1760664767660,2.53968253,3937.5,3937.4,0.2268]
[1760664767820,0.43540001,3937.7,3937.4,0.6622]
[1760664768124,2.574,3937.6,3937.5,0.4354]
[1760664768318,6.84161804,3937.6,3937.5,0.4354]
[1760664768945,12.80177904,3937.6,3937.5,0.4354]
[1760664769169,11.92813504,3937.6,3937.5,0.4354]
[1760664769775,4.302,3937.6,3937.5,0.4354]
[1760664769920,6.84161804,3937.6,3937.5,0.4354]
[1760664770118,4.66604065,3937.6,3937.5,0.4354]
[1760664770355,7.24004065,3937.6,3937.5,0.4354]
[1760664771835,4.70042261,3937.6,3937.5,0.4354]
[1760664772163,7.24004065,3937.6,3937.5,0.4354]
[1760664772864,4.66604065,3937.6,3937.5,0.4354]
[1760664773052,7.24004065,3937.6,3937.5,0.4354]
[1760664773232,2.53968253,3937.5,3937.4,0.2268]
[1760664773544,2.53968253,3937.5,3937.0,1e-08]
[1760664773545,10.58320756,3937.1,3937.0,1e-08]
[1760664773753,1.728,3937.1,3937.0,1e-08]
[1760664774062,6.84194056,3937.1,3937.0,1e-08]
[1760664774268,7.24041009,3937.1,3937.0,0.46300001]
[1760664774641,7.24041009,3937.1,3937.0,1e-08]
[1760664774844,11.02166309,3937.1,3937.0,1e-08]
[1760664776477,9.98978509,3937.1,3937.0,1e-08]
[1760664776876,11.24274579,3937.1,3937.0,1e-08]
[1760664777262,10.94357626,3937.1,3937.0,1e-08]
[1760664777467,10.84427626,3937.1,3937.0,1e-08]
[1760664777676,10.94617112,3937.1,3937.0,1e-08]
[1760664777879,8.19579612,3937.1,3937.0,0.46300001]
[1760664778045,20.28827012,3937.1,3937.0,1e-08]
[1760664778445,8.09390126,3937.1,3937.0,1e-08]
[1760664778669,27.01602326,3937.1,3937.0,1e-08]
[1760664779449,26.43376226,3937.1,3937.0,1e-08]
[1760664779857,16.78165926,3937.1,3937.0,1e-08]
[1760664780148,15.04975026,3937.1,3937.0,1e-08]
[1760664780346,11.99823926,3937.1,3937.0,1e-08]
[1760664780552,12.39675326,3937.1,3937.0,1e-08]
[1760664780769,25.21493026,3937.1,3937.0,1e-08]
[1760664780963,25.31423026,3937.1,3937.0,1e-08]
[1760664781157,24.98666726,3937.1,3937.0,1e-08]
[1760664781370,21.12679326,3937.1,3937.0,1e-08]
[1760664781761,8.49241526,3937.1,3937.0,1e-08]
[1760664782166,10.60552326,3937.1,3937.0,1e-08]
[1760664782856,14.56206026,3937.1,3937.0,1e-08]
[1760664783184,5.91941526,3937.1,3937.0,0.46130001]
[1760664783352,4.66645456,3937.1,3937.0,0.46130001]
[1760664783748,7.23945456,3937.1,3937.0,0.46130001]
[1760664785189,7.23945456,3937.1,3937.0,4.32130001]
[1760664785512,9.59819956,3937.1,3937.0,3.86000001]
[1760664785900,21.80485282,3937.1,3937.0,3.86000001]
[1760664786051,20.46797782,3937.1,3937.0,3.86000001]
[1760664786257,20.46797782,3937.1,3933.7,0.4613]
[1760664786258,0.05,3935.5,3933.7,0.4613]
[1760664786494,30.0,3935.1,3934.1,0.6884]
[1760664786785,1.728,3934.5,3934.1,0.2271]
[1760664786990,2.573,3934.4,3934.2,0.4613]
[1760664787352,2.573,3934.4,3934.1,0.2271]
[1760664787558,2.54174821,3934.3,3934.2,0.4613]
[1760664787799,2.54181282,3934.2,3934.1,0.2271]
[1760664787953,0.76418421,3935.0,3934.1,0.2271]
[1760664788161,1.728,3934.8,3934.1,0.2271]
[1760664788360,2.54169493,3934.4,3934.2,0.4613]
[1760664788559,2.574,3934.3,3934.2,0.4613]
[1760664788792,2.574,3934.3,3934.1,0.2271]
[1760664789101,2.54187743,3934.1,3933.0,0.2271]
[1760664789605,1.728,3934.7,3934.0,0.6846]
[1760664789779,0.2131,3934.9,3934.0,0.6846]
[1760664789780,2.5418046,3934.3,3934.0,0.6846]
[1760664789974,2.575,3934.2,3934.1,0.4613]
[1760664790174,2.574,3934.2,3934.1,0.4613]
[1760664790710,2.574,3934.2,3933.6,0.4613]
[1760664790914,2.574,3934.2,3933.3,0.4613]
[1760664791913,2.54221361,3933.6,3933.3,0.4613]
[1760664792111,5.11726515,3933.5,3933.4,0.4613]
[1760664792286,2.54240924,3933.3,3933.0,0.2271]
[1760664792484,2.54240924,3933.3,3933.1,0.4613]
[1760664792485,2.575,3933.2,3933.1,0.4613]
[1760664793512,2.97382025,3933.2,3933.1,0.4613]
[1760664793875,2.97382025,3933.2,3932.3,2.54302766]
[1760664794081,2.97382025,3933.2,3932.0,2.7703173]
[1760664794082,2.97382025,3933.2,3932.4,0.4613]
[1760664794280,2.5425237,3933.1,3932.4,0.4613]
[1760664795294,2.54255341,3933.1,3932.4,0.4613]
[1760664795683,2.97382025,3933.2,3932.4,0.4613]
[1760664795883,2.577,3933.1,3932.4,3.30724629]
[1760664796083,2.577,3933.1,3932.5,0.4613]
[1760664796310,0.39882025,3933.2,3932.5,0.4613]
[1760664796515,0.39882025,3933.2,3933.1,0.2271]
[1760664796680,2.97582025,3933.2,3933.1,0.2271]
[1760664796881,0.1264,3933.1,3932.8,0.4613]
[1760664797204,0.1264,3932.8,3932.4,2.54292017]
[1760664797381,0.1264,3932.4,3932.0,0.2271]
[1760664797578,0.1264,3932.2,3932.1,2.54317031]
[1760664797919,0.1264,3932.2,3932.1,3.00447031]
[1760664798217,0.1264,3932.2,3932.1,2.99680952]
[1760664798417,0.1264,3932.2,3932.1,3.65584122]
[1760664798589,0.1264,3932.2,3932.1,3.63040952]
[1760664798791,0.1264,3932.7,3932.2,3.17670413]
[1760664799112,0.1264,3933.1,3933.0,2.54258835]
[1760664799290,0.6244,3933.1,3933.0,3.63748835]
[1760664800186,0.1264,3933.1,3933.0,3.63748835]
[1760664800411,0.1264,3933.1,3933.0,7.49748835]
[1760664800618,2.54148088,3934.8,3933.8,2.54203845]
[1760664800619,2.54142523,3934.8,3933.8,2.54203845]
[1760664800913,2.577,3934.7,3933.9,3.23039426]
[1760664801081,1.728,3934.6,3933.9,0.6884]
[1760664801287,2.577,3934.5,3933.9,0.6884]
[1760664801487,5.11862948,3934.5,3933.9,0.6884]
[1760664801688,5.11862948,3934.5,3933.9,0.2271]
[1760664802326,0.1264,3933.9,3933.7,0.4351]
[1760664802529,2.577,3933.8,3933.7,0.4351]
[1760664802730,0.1264,3933.7,3933.5,0.2221]
[1760664802935,2.576,3933.8,3933.5,0.2221]
[1760664803237,0.1264,3933.5,3933.3,0.4351]
[1760664803388,0.39878212,3933.7,3933.3,0.4351]
[1760664804188,0.39878212,3933.7,3930.4,0.76469261]
[1760664804189,0.2307,3933.4,3932.2,0.4351]
[1760664804426,5.1194034,3933.3,3932.2,0.4351]
[1760664804612,2.54258123,3933.1,3932.2,0.4351]
[1760664804812,2.54267338,3932.9,3932.2,0.4351]
[1760664805025,2.579,3932.8,3932.2,0.4351]
[1760664805190,2.579,3932.7,3932.0,0.2291]
[1760664805533,2.579,3932.6,3932.0,0.2291]
[1760664805686,2.579,3932.5,3932.4,0.4371]
[1760664806614,2.579,3932.5,3932.4,0.002]
[1760664814259,2.579,3932.5,3932.4,0.4371]
[1760664814615,0.39886825,3932.8,3932.4,0.4371]
[1760664814849,0.39886825,3932.8,3932.5,0.4351]
[1760664815026,2.578,3932.7,3932.5,2.54290828]
[1760664815226,2.578,3932.7,3932.6,0.4351]
[1760664815445,2.578,3932.7,3932.6,6.83794697]
[1760664815853,1.8329,3933.6,3932.8,2.54271441]
[1760664816037,0.56534978,3933.6,3932.9,3.86]
[1760664816241,0.1011,3934.4,3933.2,2.54245501]
[1760664816437,1.728,3934.1,3933.3,4.5172]
[1760664816637,0.73477248,3934.1,3933.3,7.05957774]
[1760664816839,0.73477248,3934.1,3933.3,4.5172]
[1760664817147,3.27666028,3934.1,3933.3,7.05958939]